Cogmind - Beta 16 --- EXPLORER MODE // 2026.01.13 @ 10:47:21 Player: K.K.Y. Result: Self-destructed Performance ------------- Evolutions (2) 1000 Regions Visited (4) 800 Robots Destroyed (40) 200 Value Destroyed (1030) 1030 Prototype IDs (12) 240 Alien Tech Used (0) 0 Bonus (0) 0 TOTAL SCORE: 3270 Bonus ------- None Cogmind --------- Core Integrity 550/550 Matter 300/300 Energy 100/100 System Corruption 0% Temperature Cool (0) Movement Walking (130) Location -8/Materials Parts ------- > --- POWER (1) -------- (None) > --- PROPULSION (4) --- Cargo Legs > --- UTILITY (5+1) ---- Large Storage Unit Structural Scanner Sensor Array > --- WEAPON (2) ------- Beam Cannon Makeshift Axe > --- INVENTORY (15) --- Humpback Light Armor Plating Light Armor Plating Makeshift Light Armor Plating Makeshift System Shield Makeshift Laser Makeshift Laser Beam Cannon Beam Cannon Barrage Gun Heavy Battle Rifle Grenade Launcher Mining Laser Multitool Peak State ------------ > --- POWER ------------ (None) > --- PROPULSION ------- Cargo Legs > --- UTILITY ---------- Large Storage Unit Structural Scanner Sensor Array Improved Terrain Scanner > --- WEAPON ----------- Beam Cannon Makeshift Axe > --- INVENTORY -------- Humpback Light Armor Plating Light Armor Plating Light Armor Plating Makeshift Light Armor Plating Makeshift Laser Beam Cannon Beam Cannon Beam Cannon Beam Cannon Barrage Gun Grenade Launcher Mining Laser Multitool [Rating: 29] Favorites ----------- Power Ion Engine Engine Ion Engine Propulsion Light Treads Treads Light Treads Leg Cargo Legs Utility Sensor Array Device Sensor Array Storage Large Storage Unit Weapon Beam Cannon Energy Gun Small Laser Energy Cannon Beam Cannon Special Weapon Mining Laser Slashing Weapon Makeshift Axe Build | -11 -10 -10 -10 -8 ------- Run | Yrd Mat Min Sub Mat Slots Evolved 5 | . 1 . . 4 Power . | . . . . . Propulsion 2 | . . . . 2 Utility 3 | . 1 . . 2 Weapon . | . . . . . Parts Attached 20 | 6 7 . 7 . Power 3 | 1 1 . 1 . Engine 3 | 1 1 . 1 . Core . | . . . . . Reactor . | . . . . . Propulsion 4 | 2 1 . 1 . Treads 3 | 2 1 . . . Leg 1 | . . . 1 . Wheel . | . . . . . Hover . | . . . . . Flight . | . . . . . Utility 5 | 2 1 . 2 . Device 3 | 1 . . 2 . Storage 2 | 1 1 . . . Processor . | . . . . . Hackware . | . . . . . Protection . | . . . . . Artifact . | . . . . . Weapon 8 | 1 4 . 3 . Energy Gun 3 | 1 2 . . . Energy Cannon 3 | . 2 . 1 . Ballistic Gun . | . . . . . Ballistic Cannon . | . . . . . Launcher . | . . . . . Special Weapon 1 | . . . 1 . Impact Weapon . | . . . . . Slashing Weapon 1 | . . . 1 . Piercing Weapon . | . . . . . Special Melee Weapon . | . . . . . Unidentified Prototypes . | . . . . . Parts Lost 3 | . . . 3 . Power 1 | . . . 1 . Propulsion . | . . . . . Utility 1 | . . . 1 . Weapon 1 | . . . 1 . Highest Loss Streak 1 | . . . 1 . To Critical Strikes . | . . . . . Average Backups 11 | . 6 10 13 . Power . | . . . . . Propulsion . | . . . . . Utility 4 | . 3 5 5 . Weapon 6 | . 3 5 7 . Tool/Special . | . . . . . Unused Backups 17 | . 1 . 3 13 Power . | . . . . . Propulsion 1 | . 1 . . . Utility 6 | . . . 1 5 Weapon 9 | . . . 2 7 Tool/Special 1 | . . . . 1 Average Slot Usage (%) 82 | . 88 100 76 . Engine 7 | . 12 12 4 . Treads 13 | . 24 25 6 . Leg 4 | . . . 7 . Device 18 | . 12 12 22 . Storage 15 | . 16 25 12 . Energy Gun 1 | . 9 . . . Energy Cannon 15 | . 12 25 13 . Special Weapon 1 | . . . 2 . Slashing Weapon 4 | . . . 6 . Peak Build Rating 29 | 6 9 9 29 . Average Rating 17 | 4 7 9 22 . On Entrance 10 | . 6 9 9 27 Avg Prop Armor Cover (%) . | . . . . . Naked Turns . | . . . . . Heaviest Build 42 | 17 42 42 42 . Greatest Support 55 | 40 40 40 55 . Greatest Overweight (x) 1 | . 1 1 1 . Average Overweight (x) . | . . 1 . . Largest Inventory Capacity 15 | 10 15 15 15 . Average Capacity 14 | 8 11 15 15 . Most Carried 15 | 5 11 11 15 . Average Carried 12 | 1 6 10 14 . Final Capacity 15 | 10 15 15 15 15 Final Carried 15 | 2 10 11 15 15 Class Distribution -------------------- 86% | Hacker-Mutant 13% | Hacker-Assassin Dominant Class ---------------- Hacker-Mutant | -10/Materials Hacker-Mutant | -10/Mines Hacker-Mutant | -10/Subcaves Hacker-Mutant | -8/Materials Resources | -11 -10 -10 -10 -8 ----------- Run | Yrd Mat Min Sub Mat Matter Collected 510 | 173 187 . 150 . Remotely . | . . . . . Salvage Created 1441 | 99 411 74 857 . Parts 96 | 7 35 3 51 . Haulers Intercepted 2 | . 2 . . . Recyclers Shooed . | . . . . . Parts Field Recycled . | . . . . . Retrieved Matter . | . . . . . Parts Self-Destructed . | . . . . . Prevented . | . . . . . Parts Restored . | . . . . . Kills | -11 -10 -10 -10 -8 ------- Run | Yrd Mat Min Sub Mat Combat Hostiles Destroyed 28 | . 6 2 20 . Melee 9 | . . . 9 . Guns 2 | . 2 . . . Cannons 17 | . 4 2 11 . Classes Destroyed 11 | 2 5 . 4 . Builder 1 | . 1 . . . Tunneler 2 | 2 . . . . Hauler 2 | . 2 . . . Recycler 2 | 1 1 . . . Turret 2 | . . . 2 . Watcher 3 | . 3 . . . Swarmer 8 | . 4 . 4 . Grunt 4 | . 2 2 . . Sentry 1 | . . . 1 . Artisan 1 | . . . 1 . Subdweller 15 | . . . 15 . Best Kill Streak 6 | 3 5 2 6 . Combat Bots Only 4 | . 2 2 4 . Max Kills in Single Turn 1 | 1 1 1 1 . Gunslinging . | . . . . . Exploded . | . . . . . Melee 1 | . . . 1 . Uniques/NPCs Destroyed . | . . . . . Combat | -11 -10 -10 -10 -8 -------- Run | Yrd Mat Min Sub Mat Hostile Shots Fired 138 | . 39 8 91 . Missed 33 | . 5 . 28 . Hits 105 | . 34 8 63 . Projectile 105 | . 34 8 63 . AOE 4 | . . . 4 . Damage Taken 996 | . 222 71 703 . Core 238 | . 27 . 211 . Absorbed by Shields . | . . . . . Ignored by Resistances 616 | . 145 41 430 . Core Remaining (%) 52 | 100 . . 4 . Volleys Fired 119 | 11 36 7 65 . Largest 2 | 1 2 2 2 . Hottest 160 | 40 120 120 160 . Shots Fired 195 | 11 52 14 118 . Gun 37 | 11 26 . . . Cannon 138 | . 26 14 98 . Launcher . | . . . . . Special 20 | . . . 20 . Kinetic . | . . . . . Thermal 195 | 11 52 14 118 . Explosive . | . . . . . Electromagnetic . | . . . . . Robot Hit Streak 54 | 11 24 13 54 . Robot Miss Streak 1 | . 1 1 1 . Penetration Max . | . . . . . Secondary Targets . | . . . . . Shots Hit Robots 150 | 11 40 12 87 . Core Hits 56 | 4 15 3 34 . Critical Kills 1 | . 1 . . . Critical Parts Destroyed . | . . . . . Critical Strikes 1 | . 1 . . . Meltdown 1 | . 1 . . . Melee Attacks 91 | . . . 91 . Impact . | . . . . . Slashing 91 | . . . 91 . Piercing . | . . . . . Sneak Attacks . | . . . . . Combat Hostiles . | . . . . . Follow-up Attacks . | . . . . . Damage Inflicted 2684 | 118 557 208 1801 . Guns 395 | 118 277 . . . Cannons 1669 | . 280 208 1181 . Explosions . | . . . . . Melee 596 | . . . 596 . Ramming . | . . . . . Kinetic . | . . . . . Thermal 2088 | 118 557 208 1205 . Explosive . | . . . . . Electromagnetic . | . . . . . Impact . | . . . . . Slashing 596 | . . . 596 . Piercing . | . . . . . Highest Corruption . | . . . . . Average Corruption . | . . . . . Corruption Purged . | . . . . . Corruption Blocked . | . . . . . Overload Shots . | . . . . . Overflow Damage 23 | . 6 . 17 . Projectiles 9 | . 6 . 3 . Explosions . | . . . . . Melee 14 | . . . 14 . Knockbacks . | . . . . . Impact . | . . . . . Kinetic . | . . . . . Secondary . | . . . . . Self-Inflicted Damage . | . . . . . Shots . | . . . . . Rammed . | . . . . . Targets Rammed . | . . . . . Kicked . | . . . . . Crushed . | . . . . . Highest Temperature 267 | 20 240 267 60 . Average Temperature 64 | 18 74 125 14 . Received Heat Transfer 426 | . 168 63 195 . Siege Activations . | . . . . . Martial Activations . | . . . . . Shielding Activations . | . . . . . Robots Disrupted . | . . . . . Combat Hostiles . | . . . . . Robots Corrupted . | . . . . . Combat Hostiles . | . . . . . Parts Fried . | . . . . . Impact Corruptions . | . . . . . Robots Melted 1 | . 1 . . . Combat Hostiles . | . . . . . Parts Melted 6 | . 2 . 4 . Heat Transferred 4513 | 275 1228 444 2566 . Parts Sabotaged . | . . . . . Parts Stolen . | . . . . . Parts Stripped . | . . . . . Power Chain Reactions . | . . . . . Alert | -11 -10 -10 -10 -8 ------- Run | Yrd Mat Min Sub Mat Maximum Alert Level . | . . . . . Low Security (%) 100 | 100 100 100 . . Level 1 . | . . . . . Level 2 . | . . . . . Level 3 . | . . . . . Level 4 . | . . . . . Level 5 . | . . . . . High Security . | . . . . . Max Security . | . . . . . Peak Influence 78 | 10 78 50 . . Initial 4 | . 4 . . . Average 4 | 1 6 1 . . Influence Increases 507 | 15 227 80 185 . Destroy 0b10 Robot/C 300 | . 120 40 140 . Destroy 0b10 Robot/NC 50 | 15 35 . . . Destroy Leader 50 | . 40 10 . . Destroy Structure 2 | . 2 . . . Lose Combat Pursuer 105 | . 30 30 45 . Influence Decreases 507 | 5 237 80 185 . Entered New Map 6 | . 6 . . . Time Decay 491 | 5 231 80 175 . Lost Part 10 | . . . 10 . Squads Dispatched . | . . . . . Investigation . | . . . . . Extermination . | . . . . . Reinforcement . | . . . . . Assault . | . . . . . Garrison . | . . . . . Intercept . | . . . . . Searches Triggered . | . . . . . Construction Impeded . | . . . . . Haulers Reinforced . | . . . . . Active Scanning Responses . | . . . . . Cargo Convoy Interrupts . | . . . . . Stealth | -11 -10 -10 -10 -8 --------- Run | Yrd Mat Min Sub Mat Distress Signals 3 | . 3 . . . Communications Jammed . | . . . . . Distress Signals . | . . . . . Times Spotted 44 | . 17 4 23 . Peak Tracking Total 6 | . 6 2 6 . Tactical Retreats 4 | . 1 1 2 . Traps | -11 -10 -10 -10 -8 ------- Run | Yrd Mat Min Sub Mat Traps Triggered 3 | . 2 . 1 . Indirectly . | . . . . . Trap Hack Attempts . | . . . . . Triggered . | . . . . . Disarmed . | . . . . . Reprogrammed . | . . . . . Reused . | . . . . . Traps Extracted . | . . . . . Installed . | . . . . . Triggered . | . . . . . Machines | -11 -10 -10 -10 -8 ---------- Run | Yrd Mat Min Sub Mat Machines Disabled 1 | . . . 1 . Max in Single Turn 1 | . . . 1 . Machines Repaired . | . . . . . Machines Dismantled . | . . . . . Machines Sabotaged . | . . . . . Overloaded Fab Kills . | . . . . . Hacking | -11 -10 -10 -10 -8 --------- Run | Yrd Mat Min Sub Mat Machines Accessed 2 | . . . 2 . Terminals . | . . . . . Fabricators . | . . . . . Repair Stations . | . . . . . Recycling Units . | . . . . . Scanalyzers . | . . . . . Garrison Access . | . . . . . Total Hacks 6 | . . . 6 . Successful 6 | . . . 6 . Failed . | . . . . . Catastrophic . | . . . . . Database Lockouts . | . . . . . Manual . | . . . . . Terminals . | . . . . . Fabricators . | . . . . . Repair Stations . | . . . . . Recycling Units . | . . . . . Scanalyzers . | . . . . . Garrison Access . | . . . . . Terminal Hacks 6 | . . . 6 . Record 5 | . . . 5 . Proto ID Catalog 1 | . . . 1 . Fabricator Hacks . | . . . . . Repair Station Hacks . | . . . . . Recycling Unit Hacks . | . . . . . Scanalyzer . | . . . . . Garrison Access Hacks . | . . . . . Unauthorized Hacks . | . . . . . Terminals . | . . . . . Fabricators . | . . . . . Repair Stations . | . . . . . Recycling Units . | . . . . . Scanalyzers . | . . . . . Garrison Access . | . . . . . Data Cores Recovered . | . . . . . Used . | . . . . . Hacking Detections . | . . . . . Full Trace Events . | . . . . . Feedback Events . | . . . . . Feedback Blocked . | . . . . . Robot Schematics Acquired . | . . . . . Robots Built . | . . . . . Authchips . | . . . . . Time . | . . . . . Total Robot Build Rating . | . . . . . Part Schematics Acquired . | . . . . . Parts Built . | . . . . . Authchips . | . . . . . Time . | . . . . . Total Part Build Rating . | . . . . . Part Studies Acquired . | . . . . . Parts Repaired . | . . . . . Time . | . . . . . Parts Recycled . | . . . . . Recycled Matter . | . . . . . Retrieved Matter . | . . . . . Retrieved Components . | . . . . . Parts Scanalyzed . | . . . . . Part Schematics Acquired . | . . . . . Parts Damaged . | . . . . . Bothacking | -11 -10 -10 -10 -8 ------------ Run | Yrd Mat Min Sub Mat Used RIF Installer . | . . . . . Robots Hacked . | . . . . . Non-combat . | . . . . . Combat . | . . . . . Robot Hacks Applied . | . . . . . Relay Couplers Released . | . . . . . Fabnet Peak Effective % . | . . . . . Robots Rewired . | . . . . . Allies Hacked . | . . . . . Hacks Repelled . | . . . . . Allies | -11 -10 -10 -10 -8 -------- Run | Yrd Mat Min Sub Mat Total Allies . | . . . . . Largest Group . | . . . . . Highest-Rated Group . | . . . . . Highest-Rated Ally . | . . . . . Total Orders . | . . . . . Ally Attacks . | . . . . . Total Damage . | . . . . . Kills . | . . . . . Allies Corrupted . | . . . . . Allies Melted . | . . . . . Intel | -11 -10 -10 -10 -8 ------- Run | Yrd Mat Min Sub Mat Active Infowar (turns) 6070 | 57 1335 1309 3369 . Sensors 5215 | 57 1335 1309 2514 . Terrain 653 | . . . 653 . Structural 2829 | . . . 2829 . Robot Analysis Total . | . . . . . Derelict Logs Recovered 2 | . . 1 1 . Drone Launches . | . . . . . Drone Recoveries . | . . . . . Exploration | -11 -10 -10 -10 -8 ------------- Run | Yrd Mat Min Sub Mat Turns Passed 7305 | 75 1335 1309 4586 . Spaces Moved 3334 | 40 671 527 2096 . Core 21 | 21 . . . . Treads 1743 | 19 671 527 526 . Legs 1570 | . . . 1570 . Wheels . | . . . . . Hover . | . . . . . Flight . | . . . . . Fastest Speed 50 | 50 160 240 130 . Average Speed 164 | 102 179 240 142 . Slowest Speed 240 | 160 240 240 240 . Overloaded Moves . | . . . . . Propulsion Burnouts . | . . . . . Robots Hopped . | . . . . . Potential Cave-ins . | . . . . . Cave-ins Triggered . | . . . . . Exploration Rate (%) 59 | 4 98 99 96 1 Regions Visited 4 Branch Regions 2 Pre-discovered Areas 2 | . . . 2 . Known Exits Taken 4 | 1 1 1 1 . Unknown Exits Taken . | . . . . . Scrap Searched 12 | . . 1 11 . Spaces Dug 28 | . . . 28 . Terrain Destroyed 28 | . . . 28 . Melee 28 | . . . 28 . Projectile . | . . . . . AOE . | . . . . . Terrain Rammed . | . . . . . Walls Destroyed . | . . . . . Machines Disabled . | . . . . . Actions | -11 -10 -10 -10 -8 --------- Run | Yrd Mat Min Sub Mat Total 4827 | 63 750 558 3456 . Wait 1202 | . 10 24 1168 . Move 3330 | 39 670 526 2095 . Hop . | . . . . . Pick Up 36 | 7 16 1 12 . Fast Attach 4 | 1 2 . 1 . Attach 12 | 5 4 . 3 . Detach 3 | . 2 . 1 . Swap 15 | . 4 . 11 . Drop 15 | . 6 . 9 . Fire 119 | 11 36 7 65 . Melee 91 | . . . 91 . Ram . | . . . . . Kick . | . . . . . Crush . | . . . . . Escape Stasis . | . . . . . Rewire . | . . . . . Trap . | . . . . . Miscellaneous . | . . . . . Route ------- -11/Scrapyard -10/Materials (discovered 5 exits: *Mat x3 / *Min x2) -10/Mines (discovered 3 exits: *Mat x2 / *Sub) -10/Subcaves (discovered 3 exits: *Mat x2 / *Rec) -8/Materials History --------- Turn | Location | Event 15 | -11/Scrapyard | Identified exit to Materials 15 | -11/Scrapyard | Discovered exit to Materials (range 16) 76 | -11/Scrapyard | Entered Materials 76 | -10/Materials | Evolved 1 slot: Utility x1 170 | -10/Materials | Identified exit to Mines 170 | -10/Materials | Discovered exit to Mines (range 13) 323 | -10/Materials | Build established: Hacker-Mutant 384 | -10/Materials | Identified exit to Materials 384 | -10/Materials | Discovered exit to Materials (range 11) 499 | -10/Materials | Discovered exit to Mines (range 7) 658 | -10/Materials | Discovered exit to Materials (range 11) 877 | -10/Materials | Discovered exit to Materials (range 10) 1411 | -10/Materials | Entered Mines 1743 | -10/Mines | Found DCF Scrap (11 items) 1835 | -10/Mines | Deemed a non-threat by the Exiles lab entrance 1911 | -10/Mines | Discovered exit to Materials (range 8) 1933 | -10/Mines | Learned Materials garrison access intel 1983 | -10/Mines | Discovered exit to Materials (range 8) 2141 | -10/Mines | A weapon hastily lodged in a ceiling crevice suddenly fell to the ground 2701 | -10/Mines | Identified exit to Subcaves 2701 | -10/Mines | Discovered exit to Subcaves (range 6) 2720 | -10/Mines | Entered Subcaves 3098 | -10/Subcaves | A swath of the cavern ceiling suddenly collapsed 3195 | -10/Subcaves | Identified exit to Materials 3195 | -10/Subcaves | Discovered exit to Materials (range 13) 3208 | -10/Subcaves | Shifting Twisted Machinery released Mak. Light Armor Plating 3219 | -10/Subcaves | Shifting Twisted Machinery released Barrage Gun 3905 | -10/Subcaves | Visited 4L-MR0's lab 3928 | -10/Subcaves | Found Cargo Legs 3929 | -10/Subcaves | Attached Cargo Legs, gained temporary slots: Utility x2 4044 | -10/Subcaves | Identified exit to Recycling 4044 | -10/Subcaves | Discovered exit to Recycling (range 16) 4331 | -10/Subcaves | Visited Clippyterm 4335 | -10/Subcaves | Learned Factory garrison access intel 4896 | -10/Subcaves | Build established: Hacker-Assassin 5260 | -10/Subcaves | Core integrity fell below 50% 5342 | -10/Subcaves | Shifting Twisted Machinery released Sub. Power Source 5577 | -10/Subcaves | Learned location of Zion (-7) 5581 | -10/Subcaves | Shifting Twisted Machinery released Hvy. Battle Rifle 5693 | -10/Subcaves | Shifting Twisted Machinery released Mak. Laser 5704 | -10/Subcaves | Shifting Twisted Machinery released Sub. Laser 5844 | -10/Subcaves | Build established: Hacker-Mutant 6126 | -10/Subcaves | Core integrity fell below 20% 6181 | -10/Subcaves | Met a Zionite searching for "candidates" 6739 | -10/Subcaves | Disturbed a concealed Subdweller 7306 | -10/Subcaves | Entered Materials 7306 | -8/Materials | Evolved 4 slots: Propulsion x2, Utility x2 7306 | -8/Materials | Self-destructed Last Messages --------------- 06718_ Found Sub. Machine Gun. 06718_ Found Mak. Thermal Plating. 06718_ Found 48 Matter. 06719_ Searching scrap... 06719_ Found Battle Cannon. 06719_ Found Sub. Beam Cannon. 06719_ Found 35 Matter. 06720_ Searching scrap... 06720_ Found Sub. Power Source. 06720_ Found Battle Cannon. 06720_ Found 32 Matter. 06739_ IG-SZA(R) angrily emerges from the Twisted Machinery. 06741_ IG-SZA(R): "SUBSUUUUUB!" 06741_ IG-SZA(R) destroyed. 07105_ CI-WBW(R) destroyed. 07164_ V0-CXF(R) destroyed. PARAMETERS=PROPULSION+2,UTILITY+2 LOCATION=MATERIALS GOAL=ESCAPE Map ----- +----------------------------------------------------+ | ???????????????????????????????????????? | | ???????????????????????????????????????? | | ???????????????????????????????????????? | | ???????????????????????????????????????? | | ???????????????????????????????????????? | | ???????????????????????????????????????? | | ???????????????????????????????????????? | | ???????????????????????????????????????? | | ???????????????????????????????????????? | | ???????????????????????????????????????? | | ???????????????????????????????????????? | | ???????????????????????????????????????? | | ???????????????????????????????????????? | | ???????????????????????????????????????? | | ???????????????????????????????????????? | | ???????????????????????????????????????? | | ???????????????????????????????????????? | | ???????????????????????????????????????? | | ???????????????????????????????????????? | | ???????????????????????????????????????? | | ??????????????????## ??????????????????? | | ??????????????????## ??????????????????? | | ???????????? ####### ######??????????? | | ????????????######## ######??????????? | | ?????????? ##??????????? | | ?????????? @ ##??????????? | | ?????????? ##??????????? | | ????????????###########+#####??????????? | | ???????????? ####### ##??????????? | | ???????????????????????????????????????? | | ???????????????????????????????????????? | | ???????????????????????????????????????? | | ???????????????????????????????????????? | | ???????????????????????????????????????? | | ???????????????????????????????????????? | | ???????????????????????????????????????? | | ???????????????????????????????????????? | | ???????????????????????????????????????? | | ???????????????????????????????????????? | | ???????????????????????????????????????? | | | | | | | | | | | | | | | | | | | | | +----------------------------------------------------+ Best States ------------- Heat Dissipation 25 Energy Generation 12 Energy Capacity 265 Matter Stores 300 Matter Capacity 300 Sight Range 16 Robot Scan Range 14 Terrain Scan Range 16 Terrain Scan Density 10 Resistance: KI 35 Resistance: TH 35 Resistance: EX 35 Resistance: EM 35 Resistance: I 35 Resistance: S 35 Resistance: P 35 Evasion (%) 55 Recoil Reduction 2 Offensive Hacking 20 Item Schematics ----------------- None Robot Schematics ------------------ None Fabricated ------------ Nothing Repaired ---------- Nothing Studied --------- None Alien Tech Used ----------------- None Achievements -------------- None Challenges ------------ None Game ------ Seed TeslaSignalScythe Manual? 0 Play Time 00:22:22 Cumulative 275.9 hours Start 2026.01.13 @ 10:25:06 End 2026.01.13 @ 10:47:21 Sessions 1 Manual Loads 0 Difficulty Explorer Special Mode None Game No. 432 Rogue 0 Adventurer 0 Explorer 432 Win Type - Total 0 Types 0/0/0/0/0/0/0/0/0/0 Lore% 73 Gallery% 69 Achievement% 55 Wizard Run 0 Options --------- Layout 1 ASCII 0 Keyboard 0 Movement Mouse Keybinds 1 Fullscreen 1 Font 24/Smallcaps Map View 50x35 Zoom Use 0% Tactical HUD 1 Map Filters NONE Filters NONE Steam 1 RUN: da622595-e89c-4e69-9066-9fa59dcfe365